bitfinex-derivatives/quotes_SOLF0:USTF0_20241005
["timestamp","ask_amount","ask_price","bid_price","bid_amount"]
[1728140456624,0.12502,143.21,143.2,3.4914]
[1728140460728,10.83502,143.21,143.17,4.92]
[1728140460931,10.71,143.18,143.17,4.92]
[1728140461227,10.71,143.18,143.16,3.4922]
[1728140461228,10.71,143.18,143.16,4.92]
[1728140461726,10.71,143.17,143.16,4.92]
[1728140462721,10.71,143.17,143.16,8.4124]
[1728140462924,10.71,143.18,143.16,4.92]
[1728140463117,12.1058,143.19,143.18,3.4919]
[1728140463317,1.3979,143.2,143.16,4.92]
[1728140463826,0.12502,143.21,143.19,3.4914]
[1728140464031,0.12502,143.21,143.19,4.92]
[1728140465025,0.12502,143.21,143.2,3.4914]
[1728140478538,0.12502,143.21,143.2,14.2014]
[1728140480945,0.12502,143.27,143.25,3.4902]
[1728140481160,10.71,143.26,143.18,3.4674458]
[1728140481335,10.71,143.23,143.19,4.92]
[1728140482244,10.71,143.23,143.21,3.491]
[1728140482446,10.71,143.23,143.22,4.92]
[1728140482651,10.71,143.23,143.21,3.491]
[1728140482941,0.87,143.22,143.21,4.92]
[1728140483337,4.3609,143.22,143.2,4.92]
[1728140483547,4.3609,143.22,143.17,68.49380653]
[1728140483548,10.71,143.21,143.17,68.49380653]
[1728140483739,10.71,143.21,143.18,4.92]
[1728140484936,10.71,143.21,143.18,8.4117]
[1728140485135,10.71,143.19,143.17,68.49380653]
[1728140485350,10.71,143.18,143.17,4.92]
[1728140486052,10.71,143.18,143.15,5.04502]
[1728140486237,10.71,143.17,143.15,5.04502]
[1728140488642,12.0717,143.17,143.15,5.04502]
[1728140489745,14.2024,143.16,143.15,0.12502]
[1728140490239,10.71,143.13,143.12,4.92]
[1728140496550,3.4926,143.15,143.12,4.92]
[1728140496740,10.71,143.14,143.12,4.92]
[1728140497143,10.71,143.14,143.12,8.4133]
[1728140500242,10.71,143.14,143.13,3.4931]
[1728140505055,6.2272,143.16,143.13,3.4931]
[1728140505359,10.71,143.14,143.13,3.4931]
[1728140508362,10.71,143.14,143.12,8.4133]
[1728140515668,14.2027,143.15,143.12,8.4133]
[1728140517659,10.71,143.15,143.12,4.92]
[1728140517863,14.2029,143.14,143.12,4.92]
[1728140518070,10.71,143.14,143.12,4.92]
[1728140518263,10.71,143.13,143.12,4.92]
[1728140519782,10.71,143.13,143.09,0.12502]
[1728140520077,2.7348,143.16,143.09,8.53902]
[1728140520078,10.71,143.1,143.09,8.53902]
[1728140520583,10.71,143.11,143.1,3.4938]
[1728140521567,6.2273,143.16,143.1,10.71]
[1728140521780,10.71,143.15,143.1,10.71]
[1728140522276,10.71,143.15,143.12,3.4932]
[1728140522583,14.2026,143.15,143.12,8.4132]
[1728140523285,10.71,143.14,143.12,8.4132]
[1728140533193,14.2029,143.14,143.12,4.92]
[1728140533996,14.2029,143.14,143.12,8.4133]
[1728140536099,14.2029,143.14,143.12,3.4933]
[1728140537100,10.71,143.13,143.12,3.4933]
[1728140539904,10.71,143.13,143.11,4.92]
[1728140540103,10.71,143.12,143.11,4.92]
[1728140540504,3.4938,143.1,143.09,0.12502]
[1728140540708,14.2038,143.1,143.09,0.12502]
[1728140542003,10.71,143.11,143.09,0.12502]
[1728140543096,10.71,143.11,143.09,3.61892]
[1728140544209,1.4204,143.15,143.09,0.12502]
[1728140544402,10.71,143.13,143.11,3.4934]
[1728140548102,10.71,143.13,143.12,3.4933]
[1728140548612,10.71,143.14,143.12,3.4933]
[1728140550600,292.0,143.3,143.11,10.71]
[1728140550801,10.71,143.16,143.11,10.71]
[1728140551614,10.71,143.16,143.13,3.493]
[1728140551912,10.71,143.16,143.13,8.413]
[1728140552305,10.71,143.15,143.13,8.413]
[1728140552503,10.71,143.14,143.13,8.413]
[1728140552804,10.71,143.14,143.13,4.92]
[1728140560520,10.71,143.15,143.13,8.4131]
[1728140560910,3.4919,143.18,143.13,4.92]
[1728140561121,10.71,143.17,143.14,3.4928]
[1728140562029,10.71,143.16,143.14,3.4928]
[1728140564427,10.71,143.15,143.13,4.92]
[1728140564628,10.71,143.15,143.13,8.413]
[1728140567011,10.71,143.16,143.14,3.4929]
[1728140570317,10.71,143.15,143.13,8.413]
[1728140572228,10.71,143.15,143.14,3.4929]
[1728140574032,14.2027,143.15,143.13,4.92]
[1728140574219,10.71,143.14,143.09,0.12502]
[1728140574424,10.71,143.11,143.09,0.12502]
[1728140574725,82.51389311,143.18,143.1,4.92]
[1728140575131,82.51389311,143.18,143.09,0.12502]
[1728140575530,0.12502,143.15,143.06,4.92]
[1728140575737,10.71,143.07,143.06,4.92]
[1728140576320,10.71,143.08,143.06,4.92]
[1728140578130,10.71,143.08,143.07,3.4946]
[1728140580933,10.71,143.08,143.06,4.92]
[1728140581156,10.71,143.07,143.06,4.92]
[1728140581343,10.71,143.07,143.03,0.12502]
[1728140581539,10.71,143.04,143.03,5.04502]
[1728140581739,10.71,143.04,143.03,0.12502]
[1728140581937,10.71,143.04,142.99,17.0702693]
[1728140582139,10.71,143.0,142.98,4.92]
[1728140582440,10.71,143.0,142.97,0.12502]
[1728140582639,14.2068,142.98,142.97,0.12502]
[1728140582847,10.71,142.98,142.97,0.12502]
[1728140583849,10.71,142.98,142.92,5.04518]
[1728140584046,10.71,142.94,142.92,5.04518]
[1728140587451,10.71,142.94,142.93,3.498]
[1728140587849,1.4041,142.97,142.93,3.498]
[1728140588055,10.71,142.95,142.93,3.498]
[1728140589644,1.4041,142.97,142.92,15.75518]
[1728140589840,12.0758,142.99,142.93,10.71]
[1728140590245,12.0758,142.99,142.97,3.497]
[1728140591056,12.0758,142.99,142.96,3.4972]
[1728140591057,10.71,142.98,142.96,3.4972]
[1728140591646,10.71,142.98,142.95,4.92]
[1728140591844,10.71,142.96,142.95,8.4173]
[1728140592061,10.71,142.96,142.95,4.92]
[1728140592767,10.71,142.96,142.92,0.12518]
[1728140593058,10.71,142.93,142.92,0.12518]
[1728140593259,14.208,142.93,142.92,0.12518]
[1728140593461,10.71,142.93,142.92,0.12518]
[1728140594558,10.71,142.93,142.91,0.12502]
[1728140594559,15.623,142.93,142.91,0.12502]
[1728140594859,1.407,142.92,142.88,4.92]
[1728140595049,10.71,142.9,142.88,4.92]
[1728140595374,10.71,142.9,142.88,8.4191]
[1728140599761,10.71,142.9,142.85,5.04502]
[1728140599955,10.71,142.87,142.86,3.4996]
[1728140600662,10.71,142.87,142.85,5.04502]
[1728140600849,10.71,142.87,142.85,0.12502]
[1728140601254,10.71,142.87,142.86,3.4997]
[1728140601657,10.71,142.87,142.85,0.12502]
[1728140601863,10.71,142.87,142.85,3.62492]
[1728140602063,10.71,142.87,142.85,0.12502]
[1728140602457,10.71,142.86,142.85,3.62492]
[1728140602864,10.71,142.86,142.85,0.12502]
[1728140607863,4.9376,142.87,142.85,0.12502]
[1728140608065,10.71,142.86,142.85,0.12502]
[1728140608267,12.1481,142.87,142.85,0.12502]
[1728140609277,12.1481,142.87,142.86,3.4997]
[1728140612375,12.1481,142.87,142.85,0.12502]
[1728140612572,10.71,142.86,142.85,0.12502]
[1728140613079,14.2097,142.86,142.85,0.12502]
[1728140614777,10.71,142.86,142.85,0.12502]
[1728140622293,14.2097,142.86,142.85,0.12502]
[1728140623480,10.71,142.86,142.79,0.12502]
[1728140623681,10.71,142.82,142.79,5.08502]
[1728140624085,10.71,142.8,142.79,0.12502]
[1728140626284,10.71,142.8,142.73,5.08502]
[1728140626487,10.71,142.78,142.73,5.08502]
[1728140626683,10.71,142.78,142.73,15.79502]
[1728140626883,1.3272,142.82,142.74,10.71]
[1728140627091,10.71,142.81,142.76,10.71]
[1728140627385,1.3272,142.82,142.73,5.08502]
[1728140627386,10.71,142.78,142.77,4.96]
[1728140628697,10.71,142.78,142.74,3.5025]
[1728140628896,10.71,142.76,142.73,0.12502]
[1728140629100,10.71,142.76,142.74,4.96]
[1728140629483,10.71,142.76,142.75,3.5024]
[1728140630596,10.71,142.77,142.75,3.5024]
[1728140630893,10.71,142.77,142.74,4.96]
[1728140631598,10.71,142.78,142.77,3.5019]
[1728140631792,1.3272,142.82,142.77,4.96]
[1728140631995,10.71,142.79,142.77,4.96]
[1728140632294,10.71,142.8,142.79,3.5014]
[1728140633495,3.5002,142.84,142.77,4.96]
[1728140633690,0.12502,142.85,142.79,10.71]
[1728140633887,10.71,142.84,142.8,4.96]
[1728140634189,10.71,142.81,142.8,8.4612]
[1728140635395,10.71,142.82,142.81,3.5008]
[1728140639492,10.71,142.82,142.79,8.4612]
[1728140639692,10.71,142.81,142.79,8.4612]
[1728140640486,10.71,142.81,142.8,3.5012]
[1728140640696,10.71,142.82,142.79,4.96]
[1728140641093,10.71,142.83,142.81,3.5008]
[1728140641695,0.12502,142.85,142.84,3.5002]
[1728140641895,10.83502,142.85,142.82,5.02]
[1728140642099,10.71,142.84,142.82,5.02]
[1728140643390,0.12502,142.85,142.82,8.5206]
[1728140643391,10.71,142.83,142.82,8.5206]
[1728140643797,10.71,142.84,142.82,5.02]
[1728140643999,10.71,142.84,142.83,3.5003]
[1728140644804,0.12502,142.85,142.82,5.02]
[1728140645100,10.83502,142.85,142.84,3.5002]
[1728140646309,0.12502,142.85,142.84,3.5002]
[1728140661918,0.12502,142.91,142.84,10.71]
[1728140662122,0.12502,142.91,142.85,15.73]
[1728140662310,0.12502,142.91,142.86,5.02]
[1728140662622,10.71,142.9,142.89,3.4989]
[1728140662811,10.71,142.9,142.89,8.5189]
[1728140664415,10.71,142.9,142.89,5.02]
[1728140664821,0.12502,142.91,142.89,5.02]
[1728140665212,10.83502,142.91,142.89,5.02]
[1728140665717,10.71,142.9,142.89,5.02]
[1728140665906,10.71,142.9,142.89,8.5189]
[1728140668216,10.83502,142.91,142.89,8.5189]
[1728140668921,10.83502,142.91,142.89,5.02]
[1728140669125,10.83502,142.91,142.9,3.4987]
[1728140670826,10.83502,142.91,142.89,5.02]
[1728140671030,10.83502,142.91,142.89,8.5189]
[1728140672729,10.83502,142.91,142.89,5.02]
[1728140672926,10.83502,142.91,142.9,3.4987]
[1728140673750,0.12502,142.91,142.9,3.4987]
[1728140689350,0.12502,142.91,142.9,14.2087]
[1728140689554,1e-08,142.91,142.9,17.6234106]
[1728140691855,1e-08,142.91,142.9,3.4987]
[1728140692054,1e-08,142.91,142.9,8.7187]
[1728140694557,10.71000001,142.91,142.9,5.22]
[1728140695260,10.71000001,142.91,142.9,8.7187]
[1728140696757,10.71000001,142.91,142.87,3.4993]
[1728140696963,10.71000001,142.91,142.9,5.22]
[1728140697960,10.71000001,142.91,142.89,5.22]
[1728140698762,10.71000001,142.91,142.89,8.7188]
[1728140700261,1e-08,142.91,142.9,3.4987]
[1728140701858,1e-08,142.91,142.9,14.2087]
[1728140702161,457.72659447,143.13,142.9,14.2087]
[1728140702162,10.71,142.99,142.96,3.4973]
[1728140702358,10.71,142.99,142.96,8.5773]
[1728140702563,81.97614498,143.0,142.96,19.2873]
[1728140704964,10.71,143.01,142.96,19.2873]
[1728140705164,18.4291,143.02,142.96,19.2873]
[1728140708468,7.7191,143.02,142.96,19.2873]
[1728140708673,10.71,143.01,142.96,19.2873]
[1728140709158,10.71,143.0,142.96,8.5773]
[1728140709766,10.71,142.98,142.96,5.08]
[1728140710160,10.83502,142.97,142.91,10.71]
[1728140710473,10.71,142.95,142.92,8.578]
[1728140710771,10.71,142.95,142.92,5.08]
[1728140710972,10.71,142.96,142.92,5.08]
[1728140711171,10.71,142.96,142.91,10.71]
[1728140711172,10.71,142.96,142.93,8.5778]
[1728140712357,14.2073,142.96,142.93,8.5778]
[1728140718471,10.71,142.96,142.93,8.5778]
[1728140719663,12.0341,142.96,142.93,8.5778]
[1728140720377,14.2076,142.95,142.93,5.08]
[1728140721672,14.2076,142.95,142.92,3.4981]
[1728140721877,14.2076,142.95,142.93,5.08]
[1728140722276,10.71,142.95,142.93,5.08]
[1728140722477,10.71,142.95,142.93,8.578]
[1728140726086,10.71,142.95,142.93,5.08]
[1728140726087,10.71,142.94,142.93,5.08]
[1728140729086,10.71,142.94,142.92,8.5782]
[1728140739088,3.498,142.93,142.92,5.08]
[1728140739395,10.71,142.93,142.92,5.08]
[1728140740095,14.208,142.93,142.92,5.08]
[1728140742887,14.208,142.93,142.91,4.98]
[1728140743092,3.498,142.93,142.91,4.98]
[1728140743295,14.2078,142.94,142.91,8.4785]
[1728140743493,10.71,142.94,142.91,4.98]
[1728140744201,10.71,142.94,142.92,3.4982]
[1728140745095,10.71,142.94,142.91,4.98]
[1728140746097,10.71,142.94,142.92,3.4982]
[1728140750894,18.3123,142.96,142.93,3.4978]
[1728140755096,3.4975,142.95,142.92,3.4981]
[1728140761310,16.8868,142.96,142.94,3.4977]
[1728140761512,15.5314,142.96,142.94,8.4777]
[1728140762305,15.5314,142.96,142.94,4.98]
[1728140763304,3.4975,142.95,142.94,4.98]
[1728140763715,14.2075,142.95,142.94,4.98]
[1728140764209,10.71,142.95,142.91,4.92]
[1728140764410,10.71,142.93,142.91,4.92]
[1728140764911,14.208,142.93,142.91,4.92]
[1728140774923,3.498,142.93,142.91,4.92]
[1728140775223,12.1595,142.95,142.91,4.92]
[1728140776225,15.6572,142.95,142.92,3.4982]
[1728140777626,14.2078,142.94,142.91,8.4184]
[1728140786642,10.71,142.93,142.85,18.06050163]
[1728140786940,10.71,142.9,142.86,4.94]
[1728140787154,10.71,142.89,142.87,4.94]
[1728140787643,10.71,142.89,142.87,8.4394]
[1728140788440,10.71,142.9,142.87,3.4994]
[1728140788635,10.71,142.9,142.87,4.94]
[1728140788828,10.71,142.93,142.9,3.4987]
[1728140789033,14.2078,142.94,142.89,10.71]
[1728140789238,14.2078,142.94,142.9,4.94]
[1728140789439,84.88043819,142.95,142.94,3.4977]
[1728140789651,1.4388,142.95,142.94,3.4977]
[1728140789850,10.83502,142.97,142.94,3.4977]
[1728140791449,14.33202,142.97,142.94,3.4977]
[1728140793856,14.33202,142.97,142.93,4.94]
[1728140794057,10.71,142.95,142.93,4.94]
[1728140794357,10.71,142.94,142.89,10.71]
[1728140794539,10.71,142.92,142.87,28.64548163]
[1728140794739,10.71,142.92,142.88,4.92]
[1728140794948,10.71,142.93,142.92,3.4982]
[1728140795153,10.71,142.95,142.92,3.4982]
[1728140796747,2.7998,142.96,142.95,3.4975]
[1728140796949,2.7998,142.96,142.91,15.63]
[1728140797554,2.7998,142.96,142.93,3.4978]
[1728140797746,2.7998,142.96,142.94,4.92]
[1728140798451,10.71,142.95,142.94,4.92]
[1728140801662,13.5098,142.96,142.94,8.4177]
[1728140805155,0.12502,142.97,142.95,3.4975]
[1728140807368,10.83502,142.97,142.95,3.4975]
[1728140808858,10.83502,142.97,142.94,4.92]
[1728140809056,14.33222,142.97,142.94,8.4177]
[1728140810164,14.2073,142.96,142.94,4.92]
[1728140811957,10.71,142.96,142.94,4.92]
[1728140812154,14.33212,142.97,142.94,4.92]
[1728140812366,14.33212,142.97,142.94,8.4177]
[1728140814473,0.12502,142.97,142.94,4.92]
[1728140814681,0.12502,142.97,142.94,15.63]
[1728140814889,0.12502,142.97,142.94,4.92]
[1728140815175,10.83502,142.97,142.94,4.92]
[1728140815471,14.33222,142.97,142.94,8.4177]
[1728140818281,10.83502,142.97,142.94,8.4177]
[1728140819575,14.33202,142.97,142.94,8.4177]
[1728140821382,0.12502,142.97,142.96,3.4973]
[1728140821677,0.12502,142.97,142.96,14.2073]
[1728140822498,4.92,143.05,142.96,14.2073]
[1728140822499,3.4952,143.05,143.01,3.4958]
[1728140822784,10.71,143.05,143.01,8.4158]
[1728140822987,10.71,143.05,143.01,4.92]
[1728140823778,3.9526,143.06,143.01,4.92]
[1728140823978,14.2052,143.05,143.01,8.4159]
[1728140825885,3.4952,143.05,143.01,8.4159]
[1728140826576,18.1576,143.06,143.02,3.4958]
[1728140827584,16.8409,143.06,143.02,3.4958]
[1728140828178,3.4952,143.05,143.01,8.416]
[1728140829091,10.71,143.05,143.01,4.92]
[1728140829280,10.71,143.05,142.94,75.5]
[1728140829281,10.71,143.02,142.94,75.5]
[1728140829485,2.6359,143.06,142.94,86.21]
[1728140829486,10.71,142.99,142.94,86.21]
[1728140829785,14.2067,142.99,142.95,8.4173]
[1728140829987,10.71,142.98,142.95,4.92]
[1728140830177,14.2069,142.98,142.95,4.92]
[1728140830587,14.2069,142.98,142.94,78.9976]
[1728140830777,14.2069,142.98,142.96,4.92]
[1728140834577,14.2064,143.0,142.96,8.4171]
[1728140836199,14.2064,143.0,142.96,4.92]
[1728140836418,14.2064,143.0,142.97,3.497]
[1728140836807,3.4961,143.01,142.96,4.92]
[1728140837019,10.71,143.0,142.98,3.4968]
[1728140839113,3.4961,143.01,142.98,3.4968]
[1728140839314,3.62072,143.03,142.99,3.4964]
[1728140839515,10.71,143.01,142.99,4.92]
[1728140840417,10.71,143.01,142.99,8.4164]
[1728140840605,10.71,143.01,142.99,4.92]
[1728140841004,3.4958,143.02,142.99,4.92]
[1728140841207,14.2058,143.02,142.99,4.92]
[1728140842316,10.71,143.01,142.99,4.92]
[1728140842524,14.206,143.01,142.99,4.92]
[1728140843918,10.71,143.01,142.99,4.92]
[1728140849314,10.71,143.0,142.99,4.92]
[1728140849517,14.2063,143.0,142.99,4.92]
[1728140852821,14.2063,143.0,142.97,4.92]
[1728140857129,12.0218,143.01,142.97,4.92]
[1728140857427,12.0218,143.01,142.98,3.4967]
[1728140859029,15.5178,143.01,142.98,3.4967]
[1728140864929,14.2063,143.0,142.97,8.4169]
[1728140866931,3.4977,142.95,142.91,3.58449232]
[1728140867233,10.71,142.96,142.92,4.92]
[1728140867531,14.2074,142.96,142.92,8.4182]
[1728140869435,14.2074,142.96,142.93,3.4978]
[1728140870043,10.71,142.96,142.94,3.4976]
[1728140871234,14.2073,142.96,142.93,3.4979]
[1728140874831,10.71,142.96,142.94,3.4977]
[1728140884146,1.3743,143.0,142.92,15.63]
[1728140884439,1.3743,143.0,142.94,3.4976]
[1728140884440,14.207,142.97,142.94,3.4976]
[1728140885835,10.71,142.95,142.93,3.4979]
[1728140888850,10.71,142.97,142.92,15.63]
[1728140889049,10.71,142.97,142.95,3.4975]
[1728140890341,14.2072,142.97,142.94,3.4977]
[1728140891143,10.71,142.97,142.92,4.92]
[1728140891340,10.71,142.96,142.92,4.92]
[1728140891847,10.71,142.97,142.92,4.92]
[1728140892947,10.71,142.97,142.95,3.4975]
[1728140893542,14.2071,142.97,142.94,3.4977]
[1728140894240,10.71,142.97,142.93,3.4979]
[1728140894551,10.71,142.97,142.92,4.92]
[1728140895138,10.71,142.97,142.94,3.4976]
[1728140897747,10.71,142.96,142.94,4.92]
[1728140898253,10.71,142.95,142.94,4.92]
[1728140898942,10.71,142.95,142.92,4.92]
[1728140899140,10.71,142.95,142.91,0.12502]
[1728140899141,10.71,142.93,142.91,0.12502]
[1728140899351,14.2082,142.92,142.91,0.12502]
[1728140900351,10.71,142.89,142.86,4.92]
[1728140900657,10.71,142.88,142.86,4.92]
[1728140901056,10.71,142.88,142.86,8.4197]
[1728140904556,14.2091,142.89,142.86,8.4197]
[1728140904743,10.71,142.89,142.86,4.92]
[1728140905150,4.92,142.93,142.86,4.92]
[1728140905346,10.71,142.9,142.86,4.92]
[1728140905552,10.71,142.9,142.87,3.4993]
[1728140907959,10.71,142.9,142.88,3.4992]
[1728140917664,10.71,142.89,142.86,4.92]
[1728140917863,10.71,142.89,142.87,3.4994]
[1728140918070,10.71,142.89,142.86,4.92]
[1728140918376,10.71,142.87,142.86,8.4196]
[1728140918569,10.71,142.87,142.85,0.12502]
[1728140918766,10.71,142.86,142.85,5.04502]
[1728140920065,10.71,142.86,142.85,0.12502]
[1728140920261,14.2097,142.86,142.85,0.12502]
[1728140927576,17.7306937,142.86,142.85,0.12502]
[1728140943478,14.2309937,142.86,142.81,3.5009]
[1728140943684,10.71,142.82,142.81,3.5009]
[1728140944878,10.71,142.83,142.8,4.92]
[1728140945077,10.71,142.83,142.81,3.5009]
[1728140948292,1.3845,142.87,142.8,15.63]
[1728140948587,10.71,142.87,142.82,10.71]
[1728140948778,10.71,142.87,142.85,3.4999]
[1728140949289,10.71,142.87,142.83,4.92]
[1728140949476,10.71,142.87,142.86,3.4997]
[1728140950585,82.0267892,142.9,142.84,10.71]
[1728140950784,10.83502,142.91,142.86,10.71]
[1728140951086,10.83502,142.91,142.9,3.4987]
[1728140951087,0.12502,142.91,142.9,3.4987]
[1728140953386,0.12502,142.91,142.89,3.4989]
[1728140953387,10.83502,142.91,142.89,3.4989]
[1728140955682,10.71,142.9,142.88,3.4991]
[1728140956983,10.71,142.89,142.86,3.4997]
[1728140957183,10.71,142.87,142.86,4.92]
[1728140957693,14.2096,142.87,142.86,4.92]
[1728140957990,10.71,142.87,142.86,4.92]
[1728140958688,1.4464,142.9,142.89,3.499]
[1728140958881,10.71,142.9,142.89,3.499]
[1728140959698,10.71,142.9,142.86,4.92]
[1728140959892,10.71,142.9,142.88,3.4991]
[1728140961496,10.71,142.9,142.87,3.4994]
[1728140965100,10.71,142.88,142.87,3.4994]
[1728140967986,10.71,142.88,142.86,8.4197]
[1728140968190,10.71,142.87,142.86,4.92]
[1728140969893,10.71,142.87,142.84,3.5001]
[1728140970094,10.71,142.86,142.85,4.92]
[1728140971309,10.71,142.86,142.84,3.5001]
[1728140971493,10.71,142.85,142.84,4.92]
[1728140971690,10.71,142.85,142.77,10.75697053]
[1728140971894,10.71,142.82,142.8,8.4211]
[1728140972799,10.71,142.83,142.8,4.92]
[1728140973000,10.71,142.83,142.81,3.5009]
[1728140976905,3.4997,142.86,142.83,3.5004]
[1728140977102,10.71,142.85,142.8,15.63]
[1728140977299,10.71,142.86,142.82,10.71]
[1728140977500,3.4995,142.87,142.84,3.5]
[1728140977703,10.71,142.87,142.84,3.5]
[1728140980109,14.2095,142.87,142.84,3.5]
[1728140981003,10.71,142.86,142.83,4.92]
[1728140981200,10.71,142.85,142.83,8.4204]
[1728140984012,10.71,142.85,142.83,4.92]
[1728140985709,10.71,142.84,142.81,3.5009]
[1728140985906,10.71,142.84,142.82,4.92]
[1728140986514,14.2102,142.84,142.82,4.92]
[1728140986721,10.71,142.84,142.81,4.92]
[1728140987015,10.71,142.82,142.81,4.92]
[1728140987921,14.2108,142.82,142.8,4.92]
[1728140988217,10.71,142.81,142.8,4.92]
[1728140988618,10.71,142.81,142.8,8.4212]
[1728140991406,10.71,142.81,142.8,4.92]
[1728140992409,14.2109,142.81,142.8,4.92]
[1728140992617,10.71,142.81,142.8,4.92]
[1728140993518,10.71,142.81,142.79,0.12502]
[1728140993717,9.77385913,142.88,142.79,0.12502]
[1728140993718,10.71,142.8,142.79,0.12502]
[1728140994321,10.71,142.8,142.73,3.62772]
[1728140994619,10.71,142.75,142.74,4.92]
[1728140996713,10.71,142.75,142.73,0.12502]
[1728140997116,10.71,142.74,142.73,0.12502]
[1728140999221,10.71,142.74,142.73,3.62792]
[1728141000726,10.71,142.76,142.75,3.5022]
[1728141001521,10.71,142.77,142.75,3.5022]
[1728141001715,10.71,142.77,142.73,0.12502]
[1728141001924,12.0969,142.79,142.73,10.83502]
[1728141002426,12.0969,142.79,142.77,3.5017]
[1728141002823,1.3869,142.79,142.76,4.92]
[1728141003029,10.71,142.8,142.79,3.5014]
[1728141003726,10.71,142.8,142.76,4.92]
[1728141003925,10.71,142.79,142.77,3.5019]
[1728141004228,10.71,142.77,142.76,4.92]
[1728141004430,10.71,142.77,142.76,8.4221]
[1728141005138,10.71,142.77,142.76,4.92]
[1728141007822,10.71,142.77,142.73,0.12502]
[1728141008023,10.71,142.74,142.73,5.04502]
[1728141009229,10.71,142.74,142.73,8.54782]
[1728141022537,10.71,142.74,142.73,5.04502]
[1728141025034,10.71,142.74,142.73,0.12502]
[1728141025035,14.2126,142.74,142.73,0.12502]
[1728141025829,10.71,142.74,142.73,0.12502]
[1728141029337,1.3979,142.77,142.73,0.12502]
[1728141029338,12.1079,142.77,142.73,0.12502]
[1728141029541,12.1079,142.77,142.73,5.04502]
[1728141030149,4.92,142.8,142.73,5.04502]
[1728141030150,2.7513,142.82,142.73,5.04502]
[1728141030455,10.71,142.79,142.73,5.04502]
[1728141030743,10.71,142.79,142.74,10.71]
[1728141031642,10.71,142.79,142.77,3.5018]
[1728141032842,10.71,142.78,142.77,3.5018]
[1728141034349,10.71,142.78,142.76,4.92]
[1728141034350,10.71,142.78,142.76,8.4221]
[1728141034559,10.71,142.78,142.76,4.92]
[1728141035757,14.2117,142.78,142.76,4.92]
[1728141035948,10.71,142.78,142.76,4.92]
[1728141036147,10.71,142.78,142.76,8.4221]
[1728141040354,10.71,142.77,142.76,8.4221]
[1728141042062,10.71,142.79,142.78,3.5016]
[1728141042963,10.71,142.79,142.76,4.92]
[1728141043153,10.71,142.79,142.77,3.5018]
[1728141046351,10.71,142.79,142.78,3.5017]
[1728141047263,1.3473,142.81,142.8,3.5012]